fUSD/lending_fUSD_20240712
["ID","MTS","AMOUNT","RATE_DAILY","PERIOD"]
[331845730,1720792253589,-500.0,0.00013753,2]
[331845731,1720792253599,-500.0,0.00013753,2]
[331845732,1720792253608,-500.0,0.00013753,2]
[331845733,1720792253617,-189.36732495,0.00013753,2]
[331845734,1720792253627,-500.0,0.00013753,2]
[331845735,1720792253636,-500.0,0.00013753,2]
[331845736,1720792253647,-500.0,0.00013753,2]
[331845737,1720792253657,-500.0,0.00013753,2]
[331845738,1720792253667,-782.02,0.00013753,2]
[331845739,1720792253676,-500.0,0.00013753,2]
[331845740,1720792253685,-500.0,0.00013753,2]
[331845741,1720792253696,-500.0,0.00013753,2]
[331845742,1720792253705,-500.0,0.00013753,2]
[331845743,1720792253714,-564.04,0.00013753,2]
[331845744,1720792253723,-786.83,0.00013753,2]
[331845745,1720792253733,-500.0,0.00013753,2]
[331845746,1720792253742,-469.56,0.00013753,2]
[331845747,1720792253751,-500.0,0.00013753,2]
[331845748,1720792253760,-500.0,0.00013753,2]
[331845749,1720792253770,-500.0,0.00013753,2]
[331845750,1720792253779,-500.0,0.00013753,2]
[331845751,1720792253788,-500.0,0.00013753,2]
[331845752,1720792253797,-500.0,0.00013753,2]
[331845753,1720792253807,-500.0,0.00013753,2]
[331845754,1720792253816,-500.0,0.00013753,2]
[331845755,1720792253825,-500.0,0.00013753,2]
[331845756,1720792253835,-615.77,0.00013753,2]
[331845757,1720792253844,-500.0,0.00013753,2]
[331845758,1720792253853,-500.0,0.00013753,2]
[331845759,1720792253863,-500.0,0.00013753,2]
[331845760,1720792253872,-596.42538714,0.00013753,2]
[331845761,1720792253882,-500.0,0.00013753,2]
[331845762,1720792253891,-500.0,0.00013753,2]
[331845763,1720792253900,-500.0,0.00013753,2]
[331845764,1720792253911,-500.0,0.00013753,2]
[331845765,1720792253922,-500.0,0.00013753,2]
[331845766,1720792253933,-907.91,0.00013753,2]
[331845767,1720792253943,-507.95,0.00013753,2]
[331845768,1720792253952,-500.0,0.00013753,2]
[331845769,1720792253962,-500.0,0.00013753,2]
[331845770,1720792253971,-500.0,0.00013753,2]
[331845771,1720792253980,-1275.51,0.00013753,2]
[331845772,1720792253990,-1054.3,0.00013753,2]
[331845773,1720792254000,-500.0,0.00013753,2]
[331845774,1720792254009,-500.0,0.00013753,2]
[331845775,1720792254019,-500.0,0.00013753,2]
[331845776,1720792254028,-805.17,0.00013753,2]
[331845777,1720792254037,-1423.08,0.00013753,2]
[331845778,1720792254047,-500.0,0.00013753,2]
[331845779,1720792254056,-500.0,0.00013753,2]
[331845780,1720792254065,-500.0,0.00013753,2]
[331845781,1720792254074,-500.0,0.00013753,2]
[331845782,1720792254083,-500.0,0.00013753,2]
[331845783,1720792254093,-500.0,0.00013753,2]
[331845784,1720792254103,-587.51,0.00013753,2]
[331845785,1720792254114,-650.15,0.00013753,2]
[331845786,1720792254122,-500.0,0.00013753,2]
[331845787,1720792254132,-500.0,0.00013753,2]
[331845788,1720792254141,-618.12,0.00013753,2]
[331845789,1720792254150,-500.0,0.00013753,2]
[331845790,1720792254161,-500.0,0.00013753,2]
[331845791,1720792254170,-500.0,0.00013753,2]
[331845792,1720792254180,-600.88,0.00013753,2]
[331845793,1720792254189,-500.0,0.00013753,2]
[331845794,1720792254200,-500.0,0.00013753,2]
[331845795,1720792254209,-500.0,0.00013753,2]
[331845796,1720792254219,-500.0,0.00013753,2]
[331845797,1720792254228,-1013.71,0.00013753,2]
[331845798,1720792254238,-500.0,0.00013753,2]
[331845799,1720792254247,-512.95092246,0.00013753,2]
[331845800,1720792254257,-393.62652329,0.00013753,2]
[331845801,1720792254266,-500.0,0.00013753,2]
[331845802,1720792254275,-500.0,0.00013753,2]
[331845803,1720792254285,-1327.09,0.00013753,2]
[331845804,1720792254294,-500.0,0.00013753,2]
[331845805,1720792254303,-500.0,0.00013753,2]
[331845806,1720792254313,-771.84,0.00013753,2]
[331845807,1720792254325,-855.59,0.00013753,2]
[331845808,1720792254334,-500.0,0.00013753,2]
[331845809,1720792254343,-500.0,0.00013753,2]
[331845810,1720792254353,-500.0,0.00013753,2]
[331845811,1720792254362,-500.0,0.00013753,2]
[331845812,1720792254371,-559.04,0.00013753,2]
[331845813,1720792254380,-500.0,0.00013753,2]
[331845814,1720792254389,-500.0,0.00013753,2]
[331845815,1720792254400,-500.0,0.00013753,2]
[331845816,1720792254410,-500.0,0.00013753,2]
[331845817,1720792254419,-500.0,0.00013753,2]
[331845818,1720792254429,-507.99,0.00013753,2]
[331845819,1720792254438,-523.1,0.00013753,2]
[331845820,1720792254447,-500.0,0.00013753,2]
[331845821,1720792254457,-658.29,0.00013753,2]
[331845822,1720792254466,-531.03,0.00013753,2]
[331845823,1720792254475,-1129.11,0.00013753,2]
[331845824,1720792254485,-1146.38,0.00013753,2]
[331845825,1720792254494,-500.0,0.00013753,2]
[331845826,1720792254503,-1201.12,0.00013753,2]
[331845827,1720792254513,-500.0,0.00013753,2]
[331845828,1720792254521,-675.11,0.00013753,2]
[331845829,1720792254530,-1071.03,0.00013753,2]
[331845830,1720792254539,-500.0,0.00013753,2]
[331845831,1720792254548,-651.12,0.00013753,2]
[331845832,1720792254557,-500.0,0.00013753,2]
[331845833,1720792254566,-501.7,0.00013753,2]
[331845834,1720792254576,-787.99,0.00013753,2]
[331845835,1720792254586,-500.0,0.00013753,2]
[331845836,1720792254596,-500.0,0.00013753,2]
[331845837,1720792254606,-615.82,0.00013753,2]
[331845838,1720792254616,-692.65,0.00013753,2]
[331845839,1720792254627,-1127.88,0.00013753,2]
[331845840,1720792254637,-500.0,0.00013753,2]
[331845841,1720792254648,-730.76,0.00013753,2]
[331845842,1720792254659,-843.03,0.00013753,2]
[331845843,1720792254669,-500.76470221,0.00013753,2]
[331845844,1720792254679,-500.0,0.00013753,2]
[331845845,1720792254689,-500.0,0.00013753,2]
[331845846,1720792254702,-989.33,0.00013753,2]
[331845847,1720792254712,-2332.69,0.00013753,2]
[331845848,1720792254722,-763.9,0.00013753,2]
[331845849,1720792254731,-500.0,0.00013753,2]
[331845850,1720792254741,-500.0,0.00013753,2]
[331845851,1720792254751,-500.0,0.00013753,2]
[331845852,1720792254760,-500.0,0.00013753,2]
[331845853,1720792254769,-500.0,0.00013753,2]
[331845854,1720792254779,-849.43,0.00013753,2]
[331845855,1720792254788,-500.0,0.00013753,2]
[331845856,1720792254798,-500.0,0.00013753,2]
[331845857,1720792254807,-1585.14,0.00013753,2]
[331845858,1720792254817,-500.0,0.00013753,2]
[331845859,1720792254826,-500.0,0.00013753,2]
[331845860,1720792254835,-500.0,0.00013753,2]
[331845861,1720792254845,-500.0,0.00013753,2]
[331845862,1720792254854,-500.0,0.00013753,2]
[331845863,1720792254863,-1413.05,0.00013753,2]
[331845864,1720792254873,-4524.93,0.00013753,2]
[331845865,1720792254882,-500.0,0.00013753,2]
[331845866,1720792254891,-522.41,0.00013753,2]
[331845867,1720792254900,-500.0,0.00013753,2]
[331845868,1720792254909,-241.7227975,0.00013753,2]
[331845869,1720792254920,-500.0,0.00013753,2]
[331845870,1720792254929,-500.0,0.00013753,2]
[331845871,1720792254939,-500.0,0.00013753,2]
[331845872,1720792254948,-914.63,0.00013753,2]
[331845873,1720792254958,-500.0,0.00013753,2]
[331845874,1720792254967,-605.05,0.00013753,2]
[331845875,1720792254976,-941.86,0.00013753,2]
[331845876,1720792254987,-1218.2,0.00013753,2]
[331845877,1720792254996,-500.0,0.00013753,2]
[331845878,1720792255005,-500.0,0.00013753,2]
[331845879,1720792255015,-605.68,0.00013753,2]
[331845880,1720792255024,-500.0,0.00013753,2]
[331845881,1720792255034,-500.0,0.00013753,2]
[331845882,1720792255043,-500.0,0.00013753,2]
[331845883,1720792255052,-500.0,0.00013753,2]
[331845884,1720792255062,-500.0,0.00013753,2]
[331845885,1720792255071,-500.0,0.00013753,2]
[331845886,1720792255080,-850.86,0.00013753,2]
[331845887,1720792255089,-500.0,0.00013753,2]
[331845888,1720792255099,-1130.35,0.00013753,2]
[331845889,1720792255108,-500.0,0.00013753,2]
[331845890,1720792255117,-1947.99,0.00013753,2]
[331845891,1720792255126,-500.0,0.00013753,2]
[331845892,1720792255135,-500.0,0.00013753,2]
[331845893,1720792255145,-500.0,0.00013753,2]
[331845894,1720792255154,-691.84,0.00013753,2]
[331845895,1720792255163,-500.0,0.00013753,2]
[331845896,1720792255173,-500.0,0.00013753,2]
[331845897,1720792255182,-926.46,0.00013753,2]
[331845898,1720792255191,-500.0,0.00013753,2]
[331845899,1720792255205,-500.0,0.00013753,2]
[331845900,1720792255215,-584.64,0.00013753,2]
[331845901,1720792255224,-500.0,0.00013753,2]
[331845902,1720792255234,-1161.01,0.00013753,2]
[331845903,1720792255243,-863.79,0.00013753,2]
[331845904,1720792255253,-500.0,0.00013753,2]
[331845905,1720792255262,-1314.17,0.00013753,2]
[331845906,1720792255271,-500.0,0.00013753,2]
[331845907,1720792255280,-500.0,0.00013753,2]
[331845908,1720792255289,-430.95562068,0.00013753,2]
[331845909,1720792255299,-500.0,0.00013753,2]
[331845910,1720792255308,-1058.99,0.00013753,2]
[331845911,1720792255317,-500.0,0.00013753,2]
[331845912,1720792255330,-972.32,0.00013753,2]
[331845913,1720792255339,-500.0,0.00013753,2]
[331845914,1720792255348,-610.24,0.00013753,2]
[331845915,1720792255358,-500.0,0.00013753,2]
[331845916,1720792255369,-533.91,0.00013753,2]
[331845917,1720792255379,-618.34,0.00013753,2]
[331845918,1720792255388,-500.0,0.00013753,2]
[331845919,1720792255397,-753.07,0.00013753,2]
[331845920,1720792255407,-500.0,0.00013753,2]
[331845921,1720792255416,-500.0,0.00013753,2]
[331845922,1720792255426,-639.86841933,0.00013753,2]
[331845923,1720792255436,-559.04,0.00013753,2]
[331845924,1720792255446,-500.0,0.00013753,2]
[331845925,1720792255457,-1105.24,0.00013753,2]
[331845926,1720792255467,-570.63585896,0.00013753,2]
[331845927,1720792255477,-250.116749,0.00013753,2]
[331845928,1720792255487,-597.99,0.00013753,2]
[331845929,1720792255500,-456.56808747,0.00013753,2]
[331845930,1720792257006,-500.0,0.00013698,2]
[331845931,1720792257016,-564.66191253,0.00013753,2]
[331845932,1720792257025,-685.33808747,0.00013753,2]
[331845933,1720792258065,-425.1382989,0.00012302,2]
[331845934,1720792258075,-276.80335,0.0001369,2]
[331845935,1720792258084,-199.3068341,0.00013753,2]
[331845936,1720792258119,-118.83507843,0.00013753,2]
[331845937,1720792258128,-251.93001525,0.00013753,2]
[331845938,1720792258151,-597.56998475,0.00013753,2]
[331845939,1720792258161,-65.44128922,0.00013753,2]
[331845941,1720792645461,425.89,0.00010817,2]
[331845942,1720792758030,685.59413237,0.00011199,2]
[331845943,1720792773028,356.27356945,0.00011199,2]
[331845944,1720792786421,429.52520152,0.00011199,2]
[331845945,1720792786448,196.99510752,0.00011199,2]
[331845946,1720792797237,658.95661731,0.00011199,2]
[331845947,1720792831917,242.65178278,0.00011199,2]
[331845948,1720792835601,2000.0,0.00025,60]
[331845949,1720792843240,268.73174168,0.00011199,2]
[331845950,1720792844978,299.76455308,0.00011199,2]
[331845951,1720792854284,2000.0,0.00025,60]
[331845952,1720792878898,2000.0,0.00025,60]
[331845953,1720792882439,209.96997035,0.00011199,2]
[331845954,1720792891182,451.45890392,0.00011199,2]
[331845955,1720792914684,155.0,0.00011199,2]
[331845956,1720792917680,685.59413237,0.00011199,2]
[331845957,1720792927992,155.12465084,0.00011199,2]
[331845958,1720792934139,285.81683106,0.00011199,2]
[331845959,1720792962586,174.01178014,0.00011199,2]
[331845960,1720793019426,251.66562766,0.00011199,2]
[331845962,1720793164516,200.95179668,0.00011199,2]
[331845963,1720793178090,500.0,0.00011199,2]
[331845964,1720793178446,500.0,0.00011199,2]
[331845965,1720793179871,500.0,0.00011199,2]
[331845966,1720793182273,500.0,0.00011199,2]
[331845967,1720793182645,500.0,0.00011199,2]
[331845968,1720793183018,500.0,0.00011199,2]
[331845969,1720793183421,500.0,0.00011199,2]
[331845970,1720793184076,500.0,0.00011199,2]
[331845971,1720793184526,500.0,0.00011199,2]
[331845972,1720793184675,663.0,0.00011199,2]
[331845973,1720793239646,8330.52746991,0.00011199,2]
[331845974,1720793311465,242.65178278,0.00011199,2]
[331845975,1720793327521,429.05,0.00010782,2]
[331845981,1720793382729,155.0,0.00011199,2]
[331845982,1720793413099,5176.13327928,0.00011199,2]
[331846002,1720793431424,-500.0,0.00012676,2]
[331846003,1720793431434,-222.38,0.00012682,2]
[331846004,1720793431443,-250.0,0.00012691,2]
[331846005,1720793431452,-1000.0,0.00012691,2]
[331846006,1720793431462,-170.82,0.00012714,2]
[331846007,1720793431471,-173.49,0.00012847,2]
[331846008,1720793431480,-429.05,0.00013046,2]
[331846009,1720793431490,-157.22392001,0.00013069,2]
[331846010,1720793431500,-150.0,0.000132,2]
[331846011,1720793431510,-962.18,0.000132,2]
[331846012,1720793431520,-1000.0,0.000135,2]
[331846013,1720793431529,-450.28077408,0.00013516,2]
[331846014,1720793431539,-425.1382989,0.00013516,2]
[331846015,1720793431549,-242.65178278,0.00013543,2]
[331846016,1720793431558,-2773.34662843,0.00013588,2]
[331846017,1720793431567,-220.45,0.00013589,3]
[331846018,1720793431576,-1160.01892096,0.00013597,2]
[331846019,1720793431586,-150.0,0.00013597,2]
[331846020,1720793431595,-162.66784657,0.00013598,2]
[331846021,1720793431604,-10713.5891,0.00013598,2]
[331846022,1720793431613,-7756.1913,0.00013598,2]
[331846023,1720793431622,-363.3224,0.00013598,2]
[331846024,1720793431631,-7500.0,0.00013598,2]
[331846025,1720793431640,-2500.0,0.00013598,2]
[331846026,1720793431650,-4500.0,0.00013653,2]
[331846027,1720793431660,-1027.83093497,0.00013653,2]
[331846028,1720793431730,-649.85177778,0.00013653,2]
[331846029,1720793431741,-1500.0,0.00013653,2]
[331846030,1720793431754,-5928.47328725,0.00013653,2]
[331846031,1720793431764,-1160.01892096,0.00013698,2]
[331846032,1720793431774,-500.0,0.00013698,2]
[331846033,1720793431783,-500.0,0.00013698,2]
[331846034,1720793431793,-500.0,0.00013698,2]
[331846035,1720793431802,-500.0,0.00013698,2]
[331846036,1720793431812,-500.0,0.00013698,2]
[331846037,1720793431821,-500.0,0.00013698,2]
[331846038,1720793431830,-280.37697828,0.00013698,2]
[331846039,1720793431840,-500.0,0.00013698,2]
[331846040,1720793431849,-500.0,0.00013698,2]
[331846041,1720793431859,-500.0,0.00013698,2]
[331846042,1720793431868,-500.0,0.00013698,2]
[331846043,1720793431878,-502.47,0.00013698,2]
[331846044,1720793431887,-500.0,0.00013698,2]
[331846045,1720793431896,-500.0,0.00013698,2]
[331846046,1720793432115,-718.04,0.00013698,2]
[331846047,1720793432125,-500.0,0.00013698,2]
[331846048,1720793432134,-500.0,0.00013698,2]
[331846049,1720793432144,-500.0,0.00013698,2]
[331846050,1720793432153,-500.0,0.00013698,2]
[331846051,1720793432163,-500.0,0.00013698,2]
[331846052,1720793432174,-500.0,0.00013698,2]
[331846053,1720793432184,-564.28,0.00013698,2]
[331846054,1720793432194,-500.0,0.00013698,2]
[331846055,1720793432203,-500.0,0.00013698,2]
[331846056,1720793432212,-176.18140074,0.00013698,2]
[331846057,1720793432221,-593.47,0.00013698,2]
[331846058,1720793432231,-500.0,0.00013698,2]
[331846059,1720793432241,-500.0,0.00013698,2]
[331846060,1720793432251,-500.0,0.00013698,2]
[331846061,1720793432263,-500.0,0.00013698,2]
[331846062,1720793432273,-506.74,0.00013698,2]
[331846063,1720793432283,-500.0,0.00013698,2]
[331846064,1720793432292,-500.0,0.00013698,2]
[331846065,1720793432301,-500.0,0.00013698,2]
[331846066,1720793432311,-500.0,0.00013698,2]
[331846067,1720793432320,-863.45,0.00013698,2]
[331846068,1720793432330,-500.0,0.00013698,2]
[331846069,1720793432339,-500.0,0.00013698,2]
[331846070,1720793432349,-523.05,0.00013698,2]
[331846071,1720793432358,-500.0,0.00013698,2]
[331846072,1720793432368,-640.08,0.00013698,2]
[331846073,1720793432377,-500.0,0.00013698,2]
[331846074,1720793432388,-500.0,0.00013698,2]
[331846075,1720793432398,-500.0,0.00013698,2]
[331846076,1720793432408,-500.0,0.00013698,2]
[331846077,1720793432420,-500.0,0.00013698,2]
[331846078,1720793432429,-500.0,0.00013698,2]
[331846079,1720793432438,-500.0,0.00013698,2]
[331846080,1720793432447,-500.0,0.00013698,2]
[331846081,1720793432456,-500.0,0.00013698,2]
[331846082,1720793432467,-542.25,0.00013698,2]
[331846083,1720793432476,-517.33,0.00013698,2]
[331846084,1720793432485,-500.0,0.00013698,2]
[331846085,1720793432495,-500.0,0.00013698,2]
[331846086,1720793432504,-500.0,0.00013698,2]
[331846087,1720793432514,-638.96,0.00013698,2]
[331846088,1720793432523,-504.11149183,0.00013698,2]
[331846089,1720793432532,-520.46,0.00013698,2]
[331846090,1720793432541,-225.52077267,0.00013698,2]
[331846091,1720793432586,-274.47922733,0.00013698,2]
[331846092,1720793432595,-500.0,0.00013698,2]
[331846093,1720793432605,-500.0,0.00013698,2]
[331846094,1720793432615,-869.21,0.00013698,2]
[331846095,1720793432624,-500.0,0.00013698,2]
[331846096,1720793432634,-500.0,0.00013698,2]
[331846097,1720793432643,-500.0,0.00013698,2]
[331846098,1720793432653,-500.0,0.00013698,2]
[331846099,1720793432663,-500.0,0.00013698,2]
[331846100,1720793432677,-500.0,0.00013698,2]
[331846101,1720793432687,-530.61,0.00013698,2]
[331846102,1720793432695,-500.0,0.00013698,2]
[331846103,1720793432705,-500.0,0.00013698,2]
[331846104,1720793432714,-659.64,0.00013698,2]
[331846105,1720793432724,-500.0,0.00013698,2]
[331846106,1720793432733,-742.1,0.00013698,2]
[331846107,1720793432743,-638.51,0.00013698,2]
[331846108,1720793432754,-500.0,0.00013698,2]
[331846109,1720793432764,-500.0,0.00013698,2]
[331846110,1720793432773,-500.0,0.00013698,2]
[331846111,1720793432782,-120.26129092,0.00013698,2]
[331846112,1720793432795,-379.73870908,0.00013698,2]
[331846113,1720793432804,-336.85517155,0.00013698,2]
[331846114,1720793432815,-163.14482845,0.00013698,2]
[331846115,1720793432824,-500.0,0.00013698,2]
[331846116,1720793432834,-500.0,0.00013698,2]
[331846117,1720793432845,-500.0,0.00013698,2]
[331846118,1720793432855,-268.01535128,0.00013698,2]
[331846119,1720793432868,-231.98464872,0.00013698,2]
[331846120,1720793432878,-342.80835097,0.00013698,2]
[331846121,1720793432892,-157.19164903,0.00013698,2]
[331846122,1720793432902,-423.87635016,0.00013698,2]
[331846123,1720793432915,-76.12364984,0.00013698,2]
[331846124,1720793432925,-500.0,0.00013698,2]
[331846126,1720793432935,-500.0,0.00013698,2]
[331846128,1720793432944,-500.0,0.00013698,2]
[331846130,1720793432955,-500.0,0.00013698,2]
[331846131,1720793432965,-500.0,0.00013698,2]
[331846132,1720793432974,-500.0,0.00013698,2]
[331846133,1720793432984,-500.0,0.00013698,2]
[331846134,1720793432996,-500.0,0.00013698,2]
[331846135,1720793433005,-344.68153403,0.00013698,2]
[331846201,1720793438871,-398.32848548,0.00013598,2]
[331846203,1720793438881,-155.31846597,0.00013698,2]
[331846205,1720793438890,-500.0,0.00013698,2]
[331846207,1720793438900,-500.0,0.00013698,2]
[331846208,1720793438909,-500.0,0.00013698,2]
[331846211,1720793438921,-294.75351167,0.00013698,2]
[331846213,1720793438933,-205.24648833,0.00013698,2]
[331846214,1720793438942,-500.0,0.00013698,2]
[331846216,1720793438952,-500.0,0.00013698,2]
[331846218,1720793438962,-500.0,0.00013698,2]
[331846220,1720793438972,-500.0,0.00013698,2]
[331846222,1720793438982,-500.0,0.00013698,2]
[331846224,1720793438992,-517.69,0.00013698,2]
[331846226,1720793439001,-445.53783773,0.00013698,2]
[331846229,1720793439014,-54.46216227,0.00013698,2]
[331846231,1720793439023,-500.0,0.00013698,2]
[331846233,1720793439033,-458.82116149,0.00013698,2]
[331846235,1720793439044,-41.17883851,0.00013698,2]
[331846237,1720793439054,-524.62,0.00013698,2]
[331846239,1720793439063,-146.50116149,0.00013698,2]
[331846241,1720793439075,-474.05883851,0.00013698,2]
[331846243,1720793439085,-1050.3,0.00013698,2]
[331846245,1720793439094,-500.0,0.00013698,2]
[331846247,1720793439103,-500.0,0.00013698,2]
[331846249,1720793439113,-500.0,0.00013698,2]
[331846251,1720793439122,-500.0,0.00013698,2]
[331846253,1720793439132,-500.0,0.00013698,2]
[331846255,1720793439142,-500.0,0.00013698,2]
[331846257,1720793439151,-500.0,0.00013698,2]
[331846259,1720793439160,-500.0,0.00013698,2]
[331846261,1720793439171,-505.84,0.00013698,2]
[331846263,1720793439180,-500.0,0.00013698,2]
[331846265,1720793439190,-500.19,0.00013698,2]
[331846267,1720793439200,-500.0,0.00013698,2]
[331846268,1720793439209,-500.0,0.00013698,2]
[331846270,1720793439219,-500.0,0.00013698,2]
[331846272,1720793439229,-500.0,0.00013698,2]
[331846274,1720793439239,-639.69,0.00013698,2]
[331846276,1720793439248,-500.0,0.00013698,2]
[331846278,1720793439258,-500.0,0.00013698,2]
[331846280,1720793439268,-500.0,0.00013698,2]
[331846282,1720793439277,-500.0,0.00013698,2]
[331846284,1720793439286,-500.0,0.00013698,2]
[331846286,1720793439296,-500.0,0.00013698,2]
[331846288,1720793439305,-500.0,0.00013698,2]
[331846290,1720793439315,-500.0,0.00013698,2]
[331846292,1720793439324,-500.0,0.00013698,2]
[331846294,1720793439334,-500.0,0.00013698,2]
[331846295,1720793439344,-500.0,0.00013698,2]
[331846296,1720793439354,-500.0,0.00013698,2]
[331846297,1720793439364,-500.0,0.00013698,2]
[331846298,1720793439373,-500.0,0.00013698,2]
[331846299,1720793439382,-605.70253853,0.00013698,2]
[331846300,1720793439392,-500.0,0.00013698,2]
[331846301,1720793439402,-500.0,0.00013698,2]
[331846302,1720793439412,-500.0,0.00013698,2]
[331846303,1720793439423,-500.0,0.00013698,2]
[331846304,1720793439433,-500.0,0.00013698,2]
[331846305,1720793439442,-500.0,0.00013698,2]
[331846306,1720793439452,-500.0,0.00013698,2]
[331846307,1720793439462,-500.0,0.00013698,2]
[331846309,1720793439472,-500.0,0.00013698,2]
[331846312,1720793439481,-500.0,0.00013698,2]
[331846314,1720793439491,-500.0,0.00013698,2]
[331846315,1720793439500,-500.0,0.00013698,2]
[331846316,1720793439509,-500.0,0.00013698,2]
[331846317,1720793439519,-500.0,0.00013698,2]
[331846319,1720793439528,-572.43,0.00013698,2]
[331846321,1720793439538,-500.0,0.00013698,2]
[331846323,1720793439547,-500.0,0.00013698,2]
[331846326,1720793439557,-500.0,0.00013698,2]
[331846329,1720793439566,-500.0,0.00013698,2]
[331846331,1720793439575,-585.29,0.00013698,2]
[331846333,1720793439585,-500.0,0.00013698,2]
[331846335,1720793439594,-819.61,0.00013698,2]
[331846337,1720793439604,-588.59,0.00013698,2]
[331846339,1720793439614,-500.0,0.00013698,2]
[331846341,1720793439623,-500.0,0.00013698,2]
[331846343,1720793439633,-753.27,0.00013698,2]
[331846344,1720793439642,-500.0,0.00013698,2]
[331846346,1720793439651,-500.0,0.00013698,2]
[331846348,1720793439661,-512.35,0.00013698,2]
[331846350,1720793439675,-500.0,0.00013698,2]
[331846353,1720793439686,-500.0,0.00013698,2]
[331846354,1720793439695,-500.0,0.00013698,2]
[331846356,1720793439704,-500.0,0.00013698,2]
[331846358,1720793439715,-500.0,0.00013698,2]
[331846360,1720793439725,-500.0,0.00013698,2]
[331846362,1720793439734,-572.13,0.00013698,2]
[331846364,1720793439747,-500.0,0.00013698,2]
[331846366,1720793439756,-500.0,0.00013698,2]
[331846368,1720793439766,-533.29235552,0.00013698,2]
[331846370,1720793439775,-500.0,0.00013698,2]
[331846372,1720793439785,-500.0,0.00013698,2]
[331846374,1720793439794,-500.0,0.00013698,2]
[331846376,1720793439804,-500.0,0.00013698,2]
[331846378,1720793439814,-853.09,0.00013698,2]
[331846380,1720793439824,-500.0,0.00013698,2]
[331846382,1720793439834,-500.0,0.00013698,2]
[331846384,1720793439844,-500.0,0.00013698,2]
[331846386,1720793439853,-500.0,0.00013698,2]
[331846388,1720793439863,-500.0,0.00013698,2]
[331846390,1720793439873,-501.42,0.00013698,2]
[331846392,1720793439882,-500.0,0.00013698,2]
[331846394,1720793439892,-613.54,0.00013698,2]
[331846396,1720793439902,-500.0,0.00013698,2]
[331846398,1720793439911,-500.0,0.00013698,2]
[331846400,1720793439923,-500.0,0.00013698,2]
[331846402,1720793439933,-500.0,0.00013698,2]
[331846404,1720793439943,-500.0,0.00013698,2]
[331846406,1720793439953,-1062.15,0.00013698,2]
[331846408,1720793439963,-500.0,0.00013698,2]
[331846410,1720793439973,-500.0,0.00013698,2]
[331846412,1720793439982,-500.0,0.00013698,2]
[331846414,1720793439992,-500.0,0.00013698,2]
[331846416,1720793440001,-1061.26,0.00013698,2]
[331846418,1720793440011,-500.0,0.00013698,2]
[331846420,1720793440020,-500.0,0.00013698,2]
[331846421,1720793440030,-587.45,0.00013698,2]
[331846423,1720793440039,-672.15,0.00013698,2]
[331846425,1720793440049,-500.0,0.00013698,2]
[331846427,1720793440059,-500.0,0.00013698,2]
[331846429,1720793440069,-899.54,0.00013698,2]